Department family,Entity,Date,Expense type,Expense area,Supplier,Transaction number,Amount,VAT registration number
Department for Business Energy and Industrial Strategy,Intellectual Property Office,04/04/2019,Travel & Subsistence,Patent Directorate,Personal expenses,OS000000835,749.26,Not Applicable
Department for Business Energy and Industrial Strategy,Intellectual Property Office,12/04/2019,Travel & Subsistence,International Policy Directorate,Personal expenses,OS000000939,576.88,Not Applicable
Department for Business Energy and Industrial Strategy,Intellectual Property Office,12/04/2019,Travel & Subsistence,Innovation Directorate,Personal expenses,UK000005659,586.40,Not Applicable
Department for Business Energy and Industrial Strategy,Intellectual Property Office,23/04/2019,Travel & Subsistence,Projects,Irram Khan,IKEXT0304,527.80,Not Applicable
Department for Business Energy and Industrial Strategy,Intellectual Property Office,04/04/2019,Pay Costs,People Places & Serv Directorate,Acorn Recruitment Ltd,906239,783.84,Not Applicable
Department for Business Energy and Industrial Strategy,Intellectual Property Office,15/04/2019,Pay Costs,People Places & Serv Directorate,Acorn Recruitment Ltd,906915,774.05,Not Applicable
Department for Business Energy and Industrial Strategy,Intellectual Property Office,29/04/2019,Pay Costs,Patent Directorate,Acorn Recruitment Ltd,908302,620.71,Not Applicable
Department for Business Energy and Industrial Strategy,Intellectual Property Office,05/04/2019,Office Supplies,People Places & Serv Directorate,Banner Group Limited,3311735,860.64,Not Applicable
Department for Business Energy and Industrial Strategy,Intellectual Property Office,04/04/2019,Office Supplies,People Places & Serv Directorate,Banner Group Limited,3451713,"1,203.50",Not Applicable
Department for Business Energy and Industrial Strategy,Intellectual Property Office,08/04/2019,Telecoms,IT Directorate,British  Telecom,GP00002104M06AB,"3,056.23",Not Applicable
Department for Business Energy and Industrial Strategy,Intellectual Property Office,25/04/2019,Telecoms,IT Directorate,British  Telecom,M20801-13APR19,"-4,158.96",Not Applicable
Department for Business Energy and Industrial Strategy,Intellectual Property Office,25/04/2019,Telecoms,IT Directorate,British  Telecom,WM39430908Q029,"3,000.00",Not Applicable
Department for Business Energy and Industrial Strategy,Intellectual Property Office,25/04/2019,Telecoms,Projects,British  Telecom,WM41767738Q006,"1,890.00",Not Applicable
Department for Business Energy and Industrial Strategy,Intellectual Property Office,16/04/2019,Staff Costs,People Places & Serv Directorate,British Computer Society,1391937,625.50,Not Applicable
Department for Business Energy and Industrial Strategy,Intellectual Property Office,03/04/2019,Office Supplies,Patent Directorate,British Library,139811939,"4,866.42",Not Applicable
Department for Business Energy and Industrial Strategy,Intellectual Property Office,11/04/2019,Miscellaneous Expenses General,Finance Directorate,British Standards Institution,400631644,814.80,Not Applicable
Department for Business Energy and Industrial Strategy,Intellectual Property Office,12/04/2019,Miscellaneous Expenses General,Patent Directorate,British Standards Institution,400631645,508.80,Not Applicable
Department for Business Energy and Industrial Strategy,Intellectual Property Office,18/04/2019,Pay Costs,IT Directorate,Brook Street (UK) Ltd,30633198,542.53,Not Applicable
Department for Business Energy and Industrial Strategy,Intellectual Property Office,12/04/2019,Staff Costs,People Places & Serv Directorate,Cabinet Office,3738441,"4,800.00",Not Applicable
Department for Business Energy and Industrial Strategy,Intellectual Property Office,10/04/2019,Miscellaneous Expenses General,People Places & Serv Directorate,Cabinet Office,3747747,"6,909.84",Not Applicable
Department for Business Energy and Industrial Strategy,Intellectual Property Office,03/04/2019,Miscellaneous Expenses General,People Places & Serv Directorate,Capital Law LLP,60005213,"3,737.40",Not Applicable
Department for Business Energy and Industrial Strategy,Intellectual Property Office,09/04/2019,Miscellaneous Expenses General,People Places & Serv Directorate,Capital Law LLP,60005292,969.60,Not Applicable
Department for Business Energy and Industrial Strategy,Intellectual Property Office,01/04/2019,Miscellaneous Expenses General,Projects,Cardiff University,2036400,"30,000.00",Not Applicable
Department for Business Energy and Industrial Strategy,Intellectual Property Office,04/04/2019,Miscellaneous Expenses General,Innovation Directorate,Cardiff University,3017373,523.50,Not Applicable
Department for Business Energy and Industrial Strategy,Intellectual Property Office,05/04/2019,Staff Costs,People Places & Serv Directorate,Coleg Gwent,ARPCIN-0004024,"1,600.00",Not Applicable
Department for Business Energy and Industrial Strategy,Intellectual Property Office,25/04/2019,Staff Costs,People Places & Serv Directorate,Computeraid Ltd,21950,894.00,Not Applicable
Department for Business Energy and Industrial Strategy,Intellectual Property Office,15/04/2019,Accommodation,People Places & Serv Directorate,Corona Energy,13904800,"2,924.78",Not Applicable
Department for Business Energy and Industrial Strategy,Intellectual Property Office,15/04/2019,Accommodation,People Places & Serv Directorate,Corona Energy,13904809,"1,100.08",Not Applicable
Department for Business Energy and Industrial Strategy,Intellectual Property Office,03/04/2019,Postage & Delivery Costs,People Places & Serv Directorate,DHL International (UK) Ltd,BRS2405283,"2,555.55",Not Applicable
Department for Business Energy and Industrial Strategy,Intellectual Property Office,12/04/2019,Postage & Delivery Costs,People Places & Serv Directorate,DHL International (UK) Ltd,BRS2429028,902.50,Not Applicable
Department for Business Energy and Industrial Strategy,Intellectual Property Office,18/04/2019,Postage & Delivery Costs,People Places & Serv Directorate,DHL International (UK) Ltd,BRS2449116,"2,502.33",Not Applicable
Department for Business Energy and Industrial Strategy,Intellectual Property Office,29/04/2019,Postage & Delivery Costs,People Places & Serv Directorate,DHL International (UK) Ltd,BRS2467580,"1,000.91",Not Applicable
Department for Business Energy and Industrial Strategy,Intellectual Property Office,11/04/2019,Staff Costs,Innovation Directorate,Dod's Parliamentary Communications,PK0132687,"1,800.00",Not Applicable
Department for Business Energy and Industrial Strategy,Intellectual Property Office,10/04/2019,Marketing & Publicity,Innovation Directorate,GES and Event Services Ltd,929299,875.94,Not Applicable
Department for Business Energy and Industrial Strategy,Intellectual Property Office,29/04/2019,Accommodation,People Places & Serv Directorate,Healthy Workstations Ltd,33650,968.93,Not Applicable
Department for Business Energy and Industrial Strategy,Intellectual Property Office,01/04/2019,Accommodation,People Places & Serv Directorate,Healthy Workstations Ltd,33655,905.76,Not Applicable
Department for Business Energy and Industrial Strategy,Intellectual Property Office,29/04/2019,Accommodation,People Places & Serv Directorate,Healthy Workstations Ltd,33750,905.76,Not Applicable
Department for Business Energy and Industrial Strategy,Intellectual Property Office,30/04/2019,Miscellaneous Expenses General,Innovation Directorate,IP Pragmatics,2244,"35,400.00",Not Applicable
Department for Business Energy and Industrial Strategy,Intellectual Property Office,18/04/2019,Supporting UK Business,Innovation Directorate,IP Pragmatics,2255,"2,500.00",Not Applicable
Department for Business Energy and Industrial Strategy,Intellectual Property Office,03/04/2019,Miscellaneous Expenses General,People Places & Serv Directorate,K International PLC,I-2019-892,"1,842.14",Not Applicable
Department for Business Energy and Industrial Strategy,Intellectual Property Office,05/04/2019,Pay Costs,IT Directorate,LA International Computer Consulta,LA542968,"2,260.21",Not Applicable
Department for Business Energy and Industrial Strategy,Intellectual Property Office,05/04/2019,Pay Costs,IT Directorate,LA International Computer Consulta,LA542969,"3,146.88",Not Applicable
Department for Business Energy and Industrial Strategy,Intellectual Property Office,12/04/2019,Pay Costs,IT Directorate,LA International Computer Consulta,LA543892,"2,342.06",Not Applicable
Department for Business Energy and Industrial Strategy,Intellectual Property Office,12/04/2019,Pay Costs,IT Directorate,LA International Computer Consulta,LA543893,"3,146.88",Not Applicable
Department for Business Energy and Industrial Strategy,Intellectual Property Office,15/04/2019,Pay Costs,IT Directorate,LA International Computer Consulta,LA544449,"3,461.57",Not Applicable
Department for Business Energy and Industrial Strategy,Intellectual Property Office,02/04/2019,Travel & Subsistence,Innovation Directorate,Zenith,156230,627.61,Not Applicable
Department for Business Energy and Industrial Strategy,Intellectual Property Office,15/04/2019,Travel & Subsistence,Innovation Directorate,Zenith,160763,"1,030.10",Not Applicable
Department for Business Energy and Industrial Strategy,Intellectual Property Office,09/04/2019,Information Technology,Patent Directorate,Lexis-Nexis UK,I0762299G,"27,529.20",Not Applicable
Department for Business Energy and Industrial Strategy,Intellectual Property Office,29/04/2019,Information Technology,Patent Directorate,Lexis-Nexis UK,I0793569G,"14,193.36",Not Applicable
Department for Business Energy and Industrial Strategy,Intellectual Property Office,15/04/2019,Postage & Delivery Costs,People Places & Serv Directorate,Neopost Finance Ltd,NE9000335-15APR,"10,000.00",Not Applicable
Department for Business Energy and Industrial Strategy,Intellectual Property Office,15/04/2019,Miscellaneous Expenses General,People Places & Serv Directorate,C2W Support,34189,"1,000.00",Not Applicable
Department for Business Energy and Industrial Strategy,Intellectual Property Office,04/04/2019,Postage & Delivery Costs,People Places & Serv Directorate,Parcelforce Worldwide,9058550093,"1,013.04",Not Applicable
Department for Business Energy and Industrial Strategy,Intellectual Property Office,30/04/2019,Information Technology,IT Directorate,Phoenix Software Ltd,OP-I839892,787.20,Not Applicable
Department for Business Energy and Industrial Strategy,Intellectual Property Office,30/04/2019,Information Technology,IT Directorate,QA Ltd,QACI004099,"27,666.00",Not Applicable
Department for Business Energy and Industrial Strategy,Intellectual Property Office,30/04/2019,Information Technology,IT Directorate,QA Ltd,QACI004363,835.20,Not Applicable
Department for Business Energy and Industrial Strategy,Intellectual Property Office,15/04/2019,Information Technology,IT Directorate,QA Ltd,QACI004413,"21,576.00",Not Applicable
Department for Business Energy and Industrial Strategy,Intellectual Property Office,09/04/2019,Postage & Delivery Costs,People Places & Serv Directorate,Royal Mail,9058560201,"1,728.09",Not Applicable
Department for Business Energy and Industrial Strategy,Intellectual Property Office,12/04/2019,Accommodation,People Places & Serv Directorate,Senator International Ltd,S01506729,543.28,Not Applicable
Department for Business Energy and Industrial Strategy,Intellectual Property Office,29/04/2019,Accommodation,People Places & Serv Directorate,Senator International Ltd,S01519834,670.50,Not Applicable
Department for Business Energy and Industrial Strategy,Intellectual Property Office,29/04/2019,Accommodation,People Places & Serv Directorate,Senator International Ltd,S01519835,544.82,Not Applicable
Department for Business Energy and Industrial Strategy,Intellectual Property Office,24/04/2019,Information Technology,IT Directorate,Specialist Computer Centres Plc,OP-M573321,"1,173.12",Not Applicable
Department for Business Energy and Industrial Strategy,Intellectual Property Office,24/04/2019,Information Technology,IT Directorate,Specialist Computer Centres Plc,OP-M573321,"5,706.00",Not Applicable
Department for Business Energy and Industrial Strategy,Intellectual Property Office,24/04/2019,Information Technology,IT Directorate,Specialist Computer Centres Plc,OP-M573321,"5,888.09",Not Applicable
Department for Business Energy and Industrial Strategy,Intellectual Property Office,18/04/2019,Information Technology,IT Directorate,Specialist Computer Centres Plc,OP-M573856,551.52,Not Applicable
Department for Business Energy and Industrial Strategy,Intellectual Property Office,24/04/2019,Information Technology,IT Directorate,Specialist Computer Centres Plc,OP-M574417,571.50,Not Applicable
Department for Business Energy and Industrial Strategy,Intellectual Property Office,24/04/2019,Information Technology,IT Directorate,Specialist Computer Centres Plc,OP-M574418,571.50,Not Applicable
Department for Business Energy and Industrial Strategy,Intellectual Property Office,25/04/2019,Information Technology,IT Directorate,Specialist Computer Centres Plc,OP-M574420,"3,580.38",Not Applicable
Department for Business Energy and Industrial Strategy,Intellectual Property Office,25/04/2019,Information Technology,IT Directorate,Specialist Computer Centres Plc,OP-M574422,"11,224.85",Not Applicable
Department for Business Energy and Industrial Strategy,Intellectual Property Office,24/04/2019,Information Technology,IT Directorate,Specialist Computer Centres Plc,OP-M574423,"2,439.76",Not Applicable
Department for Business Energy and Industrial Strategy,Intellectual Property Office,25/04/2019,Information Technology,IT Directorate,Specialist Computer Centres Plc,OP-M574424,"2,035.13",Not Applicable
Department for Business Energy and Industrial Strategy,Intellectual Property Office,30/04/2019,Information Technology,IT Directorate,Specialist Computer Centres Plc,OP-M575012,"3,588.06",Not Applicable
Department for Business Energy and Industrial Strategy,Intellectual Property Office,09/04/2019,Miscellaneous Expenses General,People Places & Serv Directorate,Stonewall Equality Ltd,58761,"3,000.00",Not Applicable
Department for Business Energy and Industrial Strategy,Intellectual Property Office,05/04/2019,Accommodation,People Places & Serv Directorate,Thomas Waste Management Ltd,218110,"1,157.52",Not Applicable
Department for Business Energy and Industrial Strategy,Intellectual Property Office,18/04/2019,Information Technology,IT Directorate,Trustmarque Solutions Ltd,2283744,712.80,Not Applicable
Department for Business Energy and Industrial Strategy,Intellectual Property Office,29/04/2019,Staff Costs,People Places & Serv Directorate,University of  South Wales,OP-I036949,"15,250.00",Not Applicable
Department for Business Energy and Industrial Strategy,Intellectual Property Office,29/04/2019,Staff Costs,People Places & Serv Directorate,University of  South Wales,OP-I036950,"15,250.00",Not Applicable
Department for Business Energy and Industrial Strategy,Intellectual Property Office,29/04/2019,Staff Costs,People Places & Serv Directorate,University of  South Wales,OP-I036951,"15,250.00",Not Applicable
Department for Business Energy and Industrial Strategy,Intellectual Property Office,29/04/2019,Staff Costs,People Places & Serv Directorate,University of  South Wales,OP-I036952,"3,326.00",Not Applicable
Department for Business Energy and Industrial Strategy,Intellectual Property Office,08/04/2019,Travel & Subsistence,Innovation Directorate,Veezu Ltd T/A Dragon Taxis (Newpor,8473,188.70,Not Applicable
Department for Business Energy and Industrial Strategy,Intellectual Property Office,08/04/2019,Travel & Subsistence,Copyright and Enforcement Directorate,Veezu Ltd T/A Dragon Taxis (Newpor,8473,119.04,Not Applicable
Department for Business Energy and Industrial Strategy,Intellectual Property Office,08/04/2019,Travel & Subsistence,Copyright and Enforcement Directorate,Veezu Ltd T/A Dragon Taxis (Newpor,8473,312.00,Not Applicable
Department for Business Energy and Industrial Strategy,Intellectual Property Office,08/04/2019,Travel & Subsistence,Finance Directorate,Veezu Ltd T/A Dragon Taxis (Newpor,8473,15.60,Not Applicable
Department for Business Energy and Industrial Strategy,Intellectual Property Office,08/04/2019,Travel & Subsistence,People Places & Serv Directorate,Veezu Ltd T/A Dragon Taxis (Newpor,8473,197.76,Not Applicable
Department for Business Energy and Industrial Strategy,Intellectual Property Office,08/04/2019,Travel & Subsistence,International Policy Directorate,Veezu Ltd T/A Dragon Taxis (Newpor,8473,31.20,Not Applicable
Department for Business Energy and Industrial Strategy,Intellectual Property Office,08/04/2019,Travel & Subsistence,People Places & Serv Directorate,Veezu Ltd T/A Dragon Taxis (Newpor,8473,7.80,Not Applicable
Department for Business Energy and Industrial Strategy,Intellectual Property Office,08/04/2019,Travel & Subsistence,Projects,Veezu Ltd T/A Dragon Taxis (Newpor,8473,31.20,Not Applicable
Department for Business Energy and Industrial Strategy,Intellectual Property Office,08/04/2019,Travel & Subsistence,Innovation Directorate,Veezu Ltd T/A Dragon Taxis (Newpor,8473,82.80,Not Applicable
Department for Business Energy and Industrial Strategy,Intellectual Property Office,08/04/2019,Travel & Subsistence,Trade Mark Directorate,Veezu Ltd T/A Dragon Taxis (Newpor,8473,15.60,Not Applicable
Department for Business Energy and Industrial Strategy,Intellectual Property Office,08/04/2019,Travel & Subsistence,Innovation Directorate,Veezu Ltd T/A Dragon Taxis (Newpor,8473,29.40,Not Applicable
Department for Business Energy and Industrial Strategy,Intellectual Property Office,08/04/2019,Travel & Subsistence,Copyright and Enforcement Directorate,Veezu Ltd T/A Dragon Taxis (Newpor,8473,153.30,Not Applicable
Department for Business Energy and Industrial Strategy,Intellectual Property Office,08/04/2019,Travel & Subsistence,Finance Directorate,Veezu Ltd T/A Dragon Taxis (Newpor,8473,36.60,Not Applicable
Department for Business Energy and Industrial Strategy,Intellectual Property Office,08/04/2019,Travel & Subsistence,People Places & Serv Directorate,Veezu Ltd T/A Dragon Taxis (Newpor,8473,33.54,Not Applicable
Department for Business Energy and Industrial Strategy,Intellectual Property Office,08/04/2019,Travel & Subsistence,People Places & Serv Directorate,Veezu Ltd T/A Dragon Taxis (Newpor,8473,7.80,Not Applicable
Department for Business Energy and Industrial Strategy,Intellectual Property Office,08/04/2019,Travel & Subsistence,Patent Directorate,Veezu Ltd T/A Dragon Taxis (Newpor,8473,7.80,Not Applicable
Department for Business Energy and Industrial Strategy,Intellectual Property Office,08/04/2019,Travel & Subsistence,Innovation Directorate,Veezu Ltd T/A Dragon Taxis (Newpor,8473,82.32,Not Applicable
Department for Business Energy and Industrial Strategy,Intellectual Property Office,08/04/2019,Travel & Subsistence,Projects,Veezu Ltd T/A Dragon Taxis (Newpor,8473,13.20,Not Applicable
Department for Business Energy and Industrial Strategy,Intellectual Property Office,12/04/2019,Office Machinery,People Places & Serv Directorate,Xerox (UK) Ltd,1608962958,"1,397.03",Not Applicable
Department for Business Energy and Industrial Strategy,Intellectual Property Office,10/04/2019,Office Machinery,People Places & Serv Directorate,Xerox (UK) Ltd,1609079650,"8,602.93",Not Applicable
Department for Business Energy and Industrial Strategy,Intellectual Property Office,10/04/2019,Office Machinery,People Places & Serv Directorate,Xerox (UK) Ltd,1609079651,"6,122.83",Not Applicable
Department for Business Energy and Industrial Strategy,Intellectual Property Office,05/04/2019,Marketing & Publicity,Innovation Directorate,Aardman Animations Ltd,37334,820.80,Not Applicable
Department for Business Energy and Industrial Strategy,Intellectual Property Office,02/04/2019,Office Supplies,People Places & Serv Directorate,Antalis Limited,8462312,"2,208.31",Not Applicable
Department for Business Energy and Industrial Strategy,Intellectual Property Office,03/04/2019,Information Technology,IT Directorate,Computacenter (UK) ltd,3881912247,"10,828.50",Not Applicable
Department for Business Energy and Industrial Strategy,Intellectual Property Office,16/04/2019,Supporting UK Business,Innovation Directorate,Lincoln IP,9339,"2,500.00",Not Applicable
Department for Business Energy and Industrial Strategy,Intellectual Property Office,18/04/2019,Supporting UK Business,Innovation Directorate,Lincoln IP,9343,"2,500.00",Not Applicable
Department for Business Energy and Industrial Strategy,Intellectual Property Office,03/04/2019,Supporting UK Business,Innovation Directorate,Marks & Clerk LLP,7107673,"2,500.00",Not Applicable
Department for Business Energy and Industrial Strategy,Intellectual Property Office,29/04/2019,Miscellaneous Expenses General,International Policy Directorate,FOREIGN & COMMONWEALTH OFFICE,1111372,"69,031.21",Not Applicable
Department for Business Energy and Industrial Strategy,Intellectual Property Office,12/04/2019,Supporting UK Business,International Policy Directorate,FOREIGN & COMMONWEALTH OFFICE,1111702,"4,246.18",Not Applicable
Department for Business Energy and Industrial Strategy,Intellectual Property Office,18/04/2019,Supporting UK Business,International Policy Directorate,FOREIGN & COMMONWEALTH OFFICE,1111898,"1,541.28",Not Applicable
Department for Business Energy and Industrial Strategy,Intellectual Property Office,29/04/2019,Supporting UK Business,International Policy Directorate,FOREIGN & COMMONWEALTH OFFICE,1112031,"30,974.62",Not Applicable
Department for Business Energy and Industrial Strategy,Intellectual Property Office,03/04/2019,Information Technology,Finance Directorate,Advanced Business Solutions,ARBK-99050051,"2,712.00",Not Applicable
Department for Business Energy and Industrial Strategy,Intellectual Property Office,03/04/2019,Information Technology,Finance Directorate,Advanced Business Solutions,ARBK-99050258,"1,356.00",Not Applicable
Department for Business Energy and Industrial Strategy,Intellectual Property Office,03/04/2019,Staff Costs,IT Directorate,HORNBILL SERVICE MANAGEMENT LIMITE,INV14777,796.00,Not Applicable
Department for Business Energy and Industrial Strategy,Intellectual Property Office,01/04/2019,Miscellaneous Expenses General,IT Directorate,RICO LOGISTICS LTD,SINRLLFS00173760,632.40,Not Applicable
Department for Business Energy and Industrial Strategy,Intellectual Property Office,03/04/2019,Supporting UK Business,Innovation Directorate,LAWRIE INTELLECTUAL PROPERTY,113815,"2,500.00",Not Applicable
Department for Business Energy and Industrial Strategy,Intellectual Property Office,09/04/2019,Supporting UK Business,Innovation Directorate,LAWRIE INTELLECTUAL PROPERTY,113893,"2,500.00",Not Applicable
Department for Business Energy and Industrial Strategy,Intellectual Property Office,18/04/2019,Supporting UK Business,Innovation Directorate,LAWRIE INTELLECTUAL PROPERTY,114069,"2,500.00",Not Applicable
Department for Business Energy and Industrial Strategy,Intellectual Property Office,30/04/2019,Supporting UK Business,Innovation Directorate,LAWRIE INTELLECTUAL PROPERTY,114075,"2,500.00",Not Applicable
Department for Business Energy and Industrial Strategy,Intellectual Property Office,18/04/2019,Supporting UK Business,Innovation Directorate,INNGOT LTD,Q1904/4,"2,500.00",Not Applicable
Department for Business Energy and Industrial Strategy,Intellectual Property Office,04/04/2019,Pay Costs,Finance Directorate,Accountancy Recruitment Wales,100428,"1,401.62",Not Applicable
Department for Business Energy and Industrial Strategy,Intellectual Property Office,11/04/2019,Pay Costs,Finance Directorate,Accountancy Recruitment Wales,100429,"2,000.38",Not Applicable
Department for Business Energy and Industrial Strategy,Intellectual Property Office,04/04/2019,Pay Costs,Finance Directorate,Accountancy Recruitment Wales,100431,690.43,Not Applicable
Department for Business Energy and Industrial Strategy,Intellectual Property Office,04/04/2019,Pay Costs,Finance Directorate,Accountancy Recruitment Wales,100432,"1,303.31",Not Applicable
Department for Business Energy and Industrial Strategy,Intellectual Property Office,04/04/2019,Pay Costs,Finance Directorate,Accountancy Recruitment Wales,100433,"1,510.49",Not Applicable
Department for Business Energy and Industrial Strategy,Intellectual Property Office,04/04/2019,Pay Costs,Finance Directorate,Accountancy Recruitment Wales,100434,927.36,Not Applicable
Department for Business Energy and Industrial Strategy,Intellectual Property Office,11/04/2019,Pay Costs,Finance Directorate,Accountancy Recruitment Wales,100438,847.87,Not Applicable
Department for Business Energy and Industrial Strategy,Intellectual Property Office,11/04/2019,Pay Costs,Finance Directorate,Accountancy Recruitment Wales,100439,"1,891.51",Not Applicable
Department for Business Energy and Industrial Strategy,Intellectual Property Office,11/04/2019,Pay Costs,Finance Directorate,Accountancy Recruitment Wales,100440,765.95,Not Applicable
Department for Business Energy and Industrial Strategy,Intellectual Property Office,18/04/2019,Pay Costs,Finance Directorate,Accountancy Recruitment Wales,100446,"1,231.79",Not Applicable
Department for Business Energy and Industrial Strategy,Intellectual Property Office,18/04/2019,Pay Costs,Finance Directorate,Accountancy Recruitment Wales,100447,776.74,Not Applicable
Department for Business Energy and Industrial Strategy,Intellectual Property Office,05/04/2019,Postage & Delivery Costs,People Places & Serv Directorate,CitySprint (UK) Ltd,2930058,"7,405.31",Not Applicable
Department for Business Energy and Industrial Strategy,Intellectual Property Office,11/04/2019,Staff Costs,People Places & Serv Directorate,Chartered Institute of Personnel and Dev,8050,"2,045.00",Not Applicable
Department for Business Energy and Industrial Strategy,Intellectual Property Office,15/04/2019,Accommodation,People Places & Serv Directorate,EDF ENERGY,5640522,611.60,Not Applicable
Department for Business Energy and Industrial Strategy,Intellectual Property Office,15/04/2019,Accommodation,People Places & Serv Directorate,EDF ENERGY,5642307,"33,949.82",Not Applicable
Department for Business Energy and Industrial Strategy,Intellectual Property Office,03/04/2019,Information Technology,IT Directorate,Bytes Software Services Ltd,553469,"55,629.60",Not Applicable
Department for Business Energy and Industrial Strategy,Intellectual Property Office,18/04/2019,Supporting UK Business,Innovation Directorate,S. William Wallace & Co,1049,"2,500.00",Not Applicable
Department for Business Energy and Industrial Strategy,Intellectual Property Office,18/04/2019,Supporting UK Business,Innovation Directorate,S. William Wallace & Co,1050,"2,500.00",Not Applicable
Department for Business Energy and Industrial Strategy,Intellectual Property Office,26/04/2019,Information Technology,IT Directorate,Oracle Corporation UK Limited,1697109,"49,447.72",Not Applicable
Department for Business Energy and Industrial Strategy,Intellectual Property Office,26/04/2019,Information Technology,IT Directorate,Oracle Corporation UK Limited,1697110,"10,451.05",Not Applicable
Department for Business Energy and Industrial Strategy,Intellectual Property Office,26/04/2019,Information Technology,IT Directorate,Oracle Corporation UK Limited,1697184,"3,431.32",Not Applicable
Department for Business Energy and Industrial Strategy,Intellectual Property Office,26/04/2019,Information Technology,IT Directorate,Oracle Corporation UK Limited,1697186,"3,568.91",Not Applicable
Department for Business Energy and Industrial Strategy,Intellectual Property Office,26/04/2019,Information Technology,IT Directorate,Oracle Corporation UK Limited,1697187,"8,133.07",Not Applicable
Department for Business Energy and Industrial Strategy,Intellectual Property Office,26/04/2019,Information Technology,IT Directorate,Loadbalancer.org Limited,INV-3942,"6,469.20",Not Applicable
Department for Business Energy and Industrial Strategy,Intellectual Property Office,16/04/2019,Pay Costs,People Places & Serv Directorate,Sodexo Motivation Solutions UK Ltd,3544337,"8,192.06",Not Applicable
Department for Business Energy and Industrial Strategy,Intellectual Property Office,16/04/2019,Pay Costs,People Places & Serv Directorate,Sodexo Motivation Solutions UK Ltd,3544391,"10,516.44",Not Applicable
Department for Business Energy and Industrial Strategy,Intellectual Property Office,26/04/2019,Telecoms,IT Directorate,EE Ltd,1283300580,938.81,Not Applicable
Department for Business Energy and Industrial Strategy,Intellectual Property Office,10/04/2019,Supporting UK Business,Innovation Directorate,Lean IP,INV2243,"2,500.00",Not Applicable
Department for Business Energy and Industrial Strategy,Intellectual Property Office,01/04/2019,Legal & Hearings,Copyright and Enforcement Directorate,Government Legal Department,465577,"7,120.14",Not Applicable
Department for Business Energy and Industrial Strategy,Intellectual Property Office,17/04/2019,Legal & Hearings,Patent Directorate,Government Legal Department,466611,"2,942.88",Not Applicable
Department for Business Energy and Industrial Strategy,Intellectual Property Office,18/04/2019,Supporting UK Business,Innovation Directorate,Thorntons,990918,"2,500.00",Not Applicable
Department for Business Energy and Industrial Strategy,Intellectual Property Office,30/04/2019,Telecoms,IT Directorate,Personal expenses,UK10-042019-2402,"3,322.08",Not Applicable
Department for Business Energy and Industrial Strategy,Intellectual Property Office,29/04/2019,Information Technology,Copyright and Enforcement Directorate,COSLA,29822,"10,764.42",Not Applicable
Department for Business Energy and Industrial Strategy,Intellectual Property Office,30/04/2019,Supporting UK Business,Innovation Directorate,MacRoberts LLP,I-19-2787,"2,500.00",Not Applicable
Department for Business Energy and Industrial Strategy,Intellectual Property Office,09/04/2019,Supporting UK Business,Innovation Directorate,Murgitroyd & Company Ltd,06314M-19,"2,500.00",Not Applicable
Department for Business Energy and Industrial Strategy,Intellectual Property Office,30/04/2019,Supporting UK Business,Innovation Directorate,Murgitroyd & Company Ltd,11601-19,"2,500.00",Not Applicable
Department for Business Energy and Industrial Strategy,Intellectual Property Office,11/04/2019,Supporting UK Business,Innovation Directorate,Wilson Gunn,88149M,"2,500.00",Not Applicable
Department for Business Energy and Industrial Strategy,Intellectual Property Office,17/04/2019,Supporting UK Business,Innovation Directorate,Bailey Walsh & Co,178237,"2,500.00",Not Applicable
Department for Business Energy and Industrial Strategy,Intellectual Property Office,17/04/2019,Miscellaneous Expenses General,Projects,Robin Jacob,160419-RJ,"2,164.78",Not Applicable
Department for Business Energy and Industrial Strategy,Intellectual Property Office,15/04/2019,Miscellaneous Expenses General,Innovation Directorate,European Patent Office,40288061,832.31,Not Applicable
Department for Business Energy and Industrial Strategy,Intellectual Property Office,15/04/2019,Information Technology,Patent Directorate,European Patent Office,40288424,"26,031.19",Not Applicable
Department for Business Energy and Industrial Strategy,Intellectual Property Office,30/04/2019,Information Technology,Patent Directorate,European Patent Office,40288702,"129,856.21",Not Applicable
Department for Business Energy and Industrial Strategy,Intellectual Property Office,30/04/2019,Information Technology,IT Directorate,Verisign,520007271,"3,402.69",Not Applicable
Department for Business Energy and Industrial Strategy,Intellectual Property Office,30/04/2019,Supporting UK Business,Innovation Directorate,Ancient Hume Ltd,4729,"2,500.00",Not Applicable
Department for Business Energy and Industrial Strategy,Intellectual Property Office,18/04/2019,Supporting UK Business,Innovation Directorate,HARPER MACLEOD LLP,D986238,"2,500.00",Not Applicable
Department for Business Energy and Industrial Strategy,Intellectual Property Office,09/04/2019,Miscellaneous Expenses General,People Places & Serv Directorate,Insight Health Screening,9749,"1,340.00",Not Applicable
Department for Business Energy and Industrial Strategy,Intellectual Property Office,24/04/2019,Accommodation,People Places & Serv Directorate,Insight Health Screening,9852,"1,156.80",Not Applicable
Department for Business Energy and Industrial Strategy,Intellectual Property Office,09/04/2019,Miscellaneous Expenses General,Innovation Directorate,Elsevier BV,M402534,"3,407.81",Not Applicable
Department for Business Energy and Industrial Strategy,Intellectual Property Office,30/04/2019,Staff Costs,IT Directorate,Pluralsight,INV03867007,608.02,Not Applicable
Department for Business Energy and Industrial Strategy,Intellectual Property Office,18/04/2019,Marketing & Publicity,Innovation Directorate,Video Booth Systems Ltd,10354,663.60,Not Applicable
Department for Business Energy and Industrial Strategy,Intellectual Property Office,16/04/2019,Information Technology,IT Directorate,IBM UNITED KINGDOM LIMITED,5803192799,"18,265.99",Not Applicable
Department for Business Energy and Industrial Strategy,Intellectual Property Office,11/04/2019,Supporting UK Business,Innovation Directorate,Ellis IP Limited,3661,"2,500.00",Not Applicable
Department for Business Energy and Industrial Strategy,Intellectual Property Office,15/04/2019,Information Technology,IT Directorate,Accuweather Sales & Service Inc.,AWSS-003274,973.36,Not Applicable
Department for Business Energy and Industrial Strategy,Intellectual Property Office,09/04/2019,Miscellaneous Expenses General,Innovation Directorate,Ernst & Young LLP,CT-RES-055,"19,754.40",Not Applicable
Department for Business Energy and Industrial Strategy,Intellectual Property Office,03/04/2019,Miscellaneous Expenses General,Innovation Directorate,Ernst & Young LLP,GB10700052109,"19,754.40",Not Applicable
Department for Business Energy and Industrial Strategy,Intellectual Property Office,09/04/2019,Supporting UK Business,Innovation Directorate,Ipentus Limited,IPO009,"2,500.00",Not Applicable
Department for Business Energy and Industrial Strategy,Intellectual Property Office,16/04/2019,Supporting UK Business,Innovation Directorate,Valuation Consulting LLP,19018-3,"2,500.00",Not Applicable
Department for Business Energy and Industrial Strategy,Intellectual Property Office,30/04/2019,Accommodation,People Places & Serv Directorate,D&M Mechanical Engineers Ltd,3598,"54,000.00",Not Applicable
Department for Business Energy and Industrial Strategy,Intellectual Property Office,16/04/2019,Marketing & Publicity,Innovation Directorate,Bolt Removals Ltd,INV-001734,810.00,Not Applicable
Department for Business Energy and Industrial Strategy,Intellectual Property Office,09/04/2019,Supporting UK Business,Innovation Directorate,WP Thompson,486137,"2,500.00",Not Applicable
Department for Business Energy and Industrial Strategy,Intellectual Property Office,01/04/2019,Information Technology,IT Directorate,Nintex UK Ltd,INV8928,"13,165.20",Not Applicable
Department for Business Energy and Industrial Strategy,Intellectual Property Office,09/04/2019,Information Technology,IT Directorate,Responsiv Solutions Limited,RSL0664,"6,099.84",Not Applicable
Department for Business Energy and Industrial Strategy,Intellectual Property Office,23/04/2019,Staff Costs,IT Directorate,TeckChek Europe Ltd,190436,"3,000.00",Not Applicable
Department for Business Energy and Industrial Strategy,Intellectual Property Office,03/04/2019,Information Technology,IT Directorate,Equal Experts UK Limited,INV-6220,"15,000.00",Not Applicable
Department for Business Energy and Industrial Strategy,Intellectual Property Office,05/04/2019,Miscellaneous Expenses General,People Places & Serv Directorate,Autism Spectrum Connections Cymru,844,546.50,Not Applicable
Department for Business Energy and Industrial Strategy,Intellectual Property Office,30/04/2019,Information Technology,IT Directorate,Oracle America Inc,44303478,"2,082.65",Not Applicable
Department for Business Energy and Industrial Strategy,Intellectual Property Office,26/04/2019,Accommodation,People Places & Serv Directorate,Newport Wafer Fab Limited,SD00000938,"6,975.00",Not Applicable
Department for Business Energy and Industrial Strategy,Intellectual Property Office,26/04/2019,Accommodation,People Places & Serv Directorate,Newport Wafer Fab Limited,SD00000939,"11,500.00",Not Applicable
Department for Business Energy and Industrial Strategy,Intellectual Property Office,29/04/2019,Staff Costs,Innovation Directorate,EML Learning Ltd,SI-1914,"1,788.00",Not Applicable
Department for Business Energy and Industrial Strategy,Intellectual Property Office,04/04/2019,Telecoms,People Places & Serv Directorate,Colt Technology Services,2.0191E+12,"1,860.00",Not Applicable
Department for Business Energy and Industrial Strategy,Intellectual Property Office,10/04/2019,Accommodation,People Places & Serv Directorate,Accelerate Cleaning Solutions Ltd,7022,"2,507.77",Not Applicable
Department for Business Energy and Industrial Strategy,Intellectual Property Office,18/04/2019,Supporting UK Business,Innovation Directorate,Mohun Intellectual Property Limite,1296,"2,500.00",Not Applicable
Department for Business Energy and Industrial Strategy,Intellectual Property Office,18/04/2019,Accommodation,People Places & Serv Directorate,Shred It Ltd,9503584172,"1,648.51",Not Applicable
Department for Business Energy and Industrial Strategy,Intellectual Property Office,16/04/2019,Information Technology,IT Directorate,Zoho Corporation PVT Limited,1418971,"4,458.00",Not Applicable
Department for Business Energy and Industrial Strategy,Intellectual Property Office,03/04/2019,Supporting UK Business,Innovation Directorate,Keltie LLP,137597,"2,500.00",Not Applicable
Department for Business Energy and Industrial Strategy,Intellectual Property Office,03/04/2019,Supporting UK Business,Innovation Directorate,Keltie LLP,137604,"2,500.00",Not Applicable
Department for Business Energy and Industrial Strategy,Intellectual Property Office,18/04/2019,Supporting UK Business,Innovation Directorate,Keltie LLP,137829,"2,500.00",Not Applicable
Department for Business Energy and Industrial Strategy,Intellectual Property Office,02/04/2019,Office Supplies,People Places & Serv Directorate,Blake Envelopes,SI0000613558,"2,667.60",Not Applicable
Department for Business Energy and Industrial Strategy,Intellectual Property Office,18/04/2019,Office Supplies,People Places & Serv Directorate,Blake Envelopes,SI0000615472,"1,560.00",Not Applicable
Department for Business Energy and Industrial Strategy,Intellectual Property Office,01/04/2019,Information Technology,Projects,Silver Marlin Associates Ltd,IPO2024,"17,010.00",Not Applicable
Department for Business Energy and Industrial Strategy,Intellectual Property Office,30/04/2019,Supporting UK Business,Innovation Directorate,Archer-IP,12836,"2,500.00",Not Applicable
Department for Business Energy and Industrial Strategy,Intellectual Property Office,08/04/2019,Information Technology,IT Directorate,8X8 Solutions,2361944,"1,649.65",Not Applicable
Department for Business Energy and Industrial Strategy,Intellectual Property Office,05/04/2019,Staff Costs,People Places & Serv Directorate,JL Training & Consultancy,1747,720.00,Not Applicable
Department for Business Energy and Industrial Strategy,Intellectual Property Office,17/04/2019,Marketing & Publicity,Innovation Directorate,Find A Future t/a Worldskills UK,791,"5,040.00",Not Applicable
Department for Business Energy and Industrial Strategy,Intellectual Property Office,29/04/2019,Supporting UK Business,Innovation Directorate,Praxis Courses Ltd,50702,"3,600.00",Not Applicable
Department for Business Energy and Industrial Strategy,Intellectual Property Office,03/04/2019,Supporting UK Business,Innovation Directorate,The IP Asset Partnership Ltd,1902059,"2,500.00",Not Applicable
Department for Business Energy and Industrial Strategy,Intellectual Property Office,02/04/2019,Information Technology,IT Directorate,Perago-Wales,PM020,"11,100.00",Not Applicable
Department for Business Energy and Industrial Strategy,Intellectual Property Office,18/04/2019,Supporting UK Business,Innovation Directorate,Clarion Solicitors Limited,134427,"2,500.00",Not Applicable
Department for Business Energy and Industrial Strategy,Intellectual Property Office,09/04/2019,Supporting UK Business,Innovation Directorate,Clarion Solicitors Limited,134734,"2,500.00",Not Applicable
Department for Business Energy and Industrial Strategy,Intellectual Property Office,10/04/2019,Telecoms,IT Directorate,Gamma Telecom Ltd,GA1474403,"2,189.18",Not Applicable
Department for Business Energy and Industrial Strategy,Intellectual Property Office,05/04/2019,Staff Costs,People Places & Serv Directorate,Bethan Roberts,591-2019,657.20,Not Applicable
Department for Business Energy and Industrial Strategy,Intellectual Property Office,25/04/2019,Staff Costs,People Places & Serv Directorate,Bethan Roberts,598-2019,"1,314.40",Not Applicable
Department for Business Energy and Industrial Strategy,Intellectual Property Office,02/04/2019,Staff Costs,Patent Directorate,People Untapped Limited,INV-0664,"5,394.00",Not Applicable
Department for Business Energy and Industrial Strategy,Intellectual Property Office,17/04/2019,Staff Costs,IT Directorate,People Untapped Limited,INV-0672,"13,440.00",Not Applicable
Department for Business Energy and Industrial Strategy,Intellectual Property Office,05/04/2019,Miscellaneous Expenses General,Projects,Acuma Solutions Limited,SIN019095,"17,172.00",Not Applicable
Department for Business Energy and Industrial Strategy,Intellectual Property Office,09/04/2019,Supporting UK Business,Innovation Directorate,Barker Brettell LLP,369098,"2,500.00",Not Applicable
Department for Business Energy and Industrial Strategy,Intellectual Property Office,11/04/2019,Miscellaneous Expenses General,Projects,Microsoft Limited,9899065334,"48,780.00",Not Applicable
Department for Business Energy and Industrial Strategy,Intellectual Property Office,11/04/2019,Staff Costs,People Places & Serv Directorate,Tracy Mountain,10,"1,600.00",Not Applicable
Department for Business Energy and Industrial Strategy,Intellectual Property Office,02/04/2019,Information Technology,Innovation Directorate,Deloitte MCS Limited,8000491450,"154,002.00",Not Applicable
Department for Business Energy and Industrial Strategy,Intellectual Property Office,05/04/2019,Information Technology,Projects,Deloitte MCS Limited,8000502170,"18,397.68",Not Applicable
Department for Business Energy and Industrial Strategy,Intellectual Property Office,10/04/2019,Information Technology,Projects,Deloitte MCS Limited,8000505066,"36,361.38",Not Applicable
Department for Business Energy and Industrial Strategy,Intellectual Property Office,09/04/2019,Supporting UK Business,Innovation Directorate,BASCK Limited,19095,"2,500.00",Not Applicable
Department for Business Energy and Industrial Strategy,Intellectual Property Office,03/04/2019,Accommodation,People Places & Serv Directorate,Apex Security Engineering Ltd,ATF-8947,"1,335.60",Not Applicable
Department for Business Energy and Industrial Strategy,Intellectual Property Office,02/04/2019,Pay Costs,Patent Directorate,Alexander Mann Solutions Limited,2060143,638.92,Not Applicable
Department for Business Energy and Industrial Strategy,Intellectual Property Office,05/04/2019,Pay Costs,Patent Directorate,Alexander Mann Solutions Limited,2061723,660.60,Not Applicable
Department for Business Energy and Industrial Strategy,Intellectual Property Office,05/04/2019,Pay Costs,Patent Directorate,Alexander Mann Solutions Limited,2061724,651.79,Not Applicable
Department for Business Energy and Industrial Strategy,Intellectual Property Office,05/04/2019,Pay Costs,Trade Mark Directorate,Alexander Mann Solutions Limited,2061726,644.24,Not Applicable
Department for Business Energy and Industrial Strategy,Intellectual Property Office,05/04/2019,Pay Costs,Patent Directorate,Alexander Mann Solutions Limited,2061728,"1,690.57",Not Applicable
Department for Business Energy and Industrial Strategy,Intellectual Property Office,05/04/2019,Pay Costs,Patent Directorate,Alexander Mann Solutions Limited,2061729,565.20,Not Applicable
Department for Business Energy and Industrial Strategy,Intellectual Property Office,05/04/2019,Pay Costs,Patent Directorate,Alexander Mann Solutions Limited,2061730,581.64,Not Applicable
Department for Business Energy and Industrial Strategy,Intellectual Property Office,05/04/2019,Pay Costs,IT Directorate,Alexander Mann Solutions Limited,2061732,"4,010.66",Not Applicable
Department for Business Energy and Industrial Strategy,Intellectual Property Office,05/04/2019,Pay Costs,IT Directorate,Alexander Mann Solutions Limited,2061733,"2,193.80",Not Applicable
Department for Business Energy and Industrial Strategy,Intellectual Property Office,05/04/2019,Pay Costs,IT Directorate,Alexander Mann Solutions Limited,2061734,"2,930.40",Not Applicable
Department for Business Energy and Industrial Strategy,Intellectual Property Office,05/04/2019,Pay Costs,IT Directorate,Alexander Mann Solutions Limited,2061735,"3,622.86",Not Applicable
Department for Business Energy and Industrial Strategy,Intellectual Property Office,05/04/2019,Pay Costs,IT Directorate,Alexander Mann Solutions Limited,2061736,"2,171.40",Not Applicable
Department for Business Energy and Industrial Strategy,Intellectual Property Office,15/04/2019,Pay Costs,IT Directorate,Alexander Mann Solutions Limited,2061737,"4,927.39",Not Applicable
Department for Business Energy and Industrial Strategy,Intellectual Property Office,05/04/2019,Pay Costs,IT Directorate,Alexander Mann Solutions Limited,2061738,"3,387.28",Not Applicable
Department for Business Energy and Industrial Strategy,Intellectual Property Office,05/04/2019,Pay Costs,IT Directorate,Alexander Mann Solutions Limited,2061739,"3,241.21",Not Applicable
Department for Business Energy and Industrial Strategy,Intellectual Property Office,05/04/2019,Pay Costs,IT Directorate,Alexander Mann Solutions Limited,2061740,713.70,Not Applicable
Department for Business Energy and Industrial Strategy,Intellectual Property Office,05/04/2019,Pay Costs,IT Directorate,Alexander Mann Solutions Limited,2061741,"3,353.94",Not Applicable
Department for Business Energy and Industrial Strategy,Intellectual Property Office,05/04/2019,Pay Costs,IT Directorate,Alexander Mann Solutions Limited,2061742,"3,214.38",Not Applicable
Department for Business Energy and Industrial Strategy,Intellectual Property Office,05/04/2019,Pay Costs,IT Directorate,Alexander Mann Solutions Limited,2061743,"3,209.98",Not Applicable
Department for Business Energy and Industrial Strategy,Intellectual Property Office,05/04/2019,Pay Costs,IT Directorate,Alexander Mann Solutions Limited,2061744,"2,995.68",Not Applicable
Department for Business Energy and Industrial Strategy,Intellectual Property Office,05/04/2019,Pay Costs,IT Directorate,Alexander Mann Solutions Limited,2061745,"3,109.68",Not Applicable
Department for Business Energy and Industrial Strategy,Intellectual Property Office,05/04/2019,Pay Costs,IT Directorate,Alexander Mann Solutions Limited,2061746,"3,692.16",Not Applicable
Department for Business Energy and Industrial Strategy,Intellectual Property Office,05/04/2019,Pay Costs,IT Directorate,Alexander Mann Solutions Limited,2061747,582.71,Not Applicable
Department for Business Energy and Industrial Strategy,Intellectual Property Office,05/04/2019,Pay Costs,IT Directorate,Alexander Mann Solutions Limited,2061748,"2,771.70",Not Applicable
Department for Business Energy and Industrial Strategy,Intellectual Property Office,05/04/2019,Pay Costs,Patent Directorate,Alexander Mann Solutions Limited,2061749,565.21,Not Applicable
Department for Business Energy and Industrial Strategy,Intellectual Property Office,05/04/2019,Pay Costs,Patent Directorate,Alexander Mann Solutions Limited,2061750,644.24,Not Applicable
Department for Business Energy and Industrial Strategy,Intellectual Property Office,05/04/2019,Pay Costs,Patent Directorate,Alexander Mann Solutions Limited,2061751,593.17,Not Applicable
Department for Business Energy and Industrial Strategy,Intellectual Property Office,05/04/2019,Pay Costs,People Places & Serv Directorate,Alexander Mann Solutions Limited,2061752,695.83,Not Applicable
Department for Business Energy and Industrial Strategy,Intellectual Property Office,05/04/2019,Pay Costs,Patent Directorate,Alexander Mann Solutions Limited,2061753,589.19,Not Applicable
Department for Business Energy and Industrial Strategy,Intellectual Property Office,05/04/2019,Pay Costs,IT Directorate,Alexander Mann Solutions Limited,2061754,"7,088.22",Not Applicable
Department for Business Energy and Industrial Strategy,Intellectual Property Office,05/04/2019,Pay Costs,IT Directorate,Alexander Mann Solutions Limited,2061755,839.16,Not Applicable
Department for Business Energy and Industrial Strategy,Intellectual Property Office,05/04/2019,Pay Costs,Patent Directorate,Alexander Mann Solutions Limited,2061756,518.04,Not Applicable
Department for Business Energy and Industrial Strategy,Intellectual Property Office,05/04/2019,Pay Costs,Patent Directorate,Alexander Mann Solutions Limited,2061757,638.92,Not Applicable
Department for Business Energy and Industrial Strategy,Intellectual Property Office,15/04/2019,Pay Costs,Trade Mark Directorate,Alexander Mann Solutions Limited,2063452,639.79,Not Applicable
Department for Business Energy and Industrial Strategy,Intellectual Property Office,15/04/2019,Pay Costs,Patent Directorate,Alexander Mann Solutions Limited,2063453,555.37,Not Applicable
Department for Business Energy and Industrial Strategy,Intellectual Property Office,17/04/2019,Pay Costs,Patent Directorate,Alexander Mann Solutions Limited,2063454,531.17,Not Applicable
Department for Business Energy and Industrial Strategy,Intellectual Property Office,17/04/2019,Pay Costs,IT Directorate,Alexander Mann Solutions Limited,2063459,"3,622.86",Not Applicable
Department for Business Energy and Industrial Strategy,Intellectual Property Office,15/04/2019,Pay Costs,IT Directorate,Alexander Mann Solutions Limited,2063460,"2,435.40",Not Applicable
Department for Business Energy and Industrial Strategy,Intellectual Property Office,15/04/2019,Pay Costs,IT Directorate,Alexander Mann Solutions Limited,2063461,"3,079.62",Not Applicable
Department for Business Energy and Industrial Strategy,Intellectual Property Office,15/04/2019,Pay Costs,IT Directorate,Alexander Mann Solutions Limited,2063462,"3,387.28",Not Applicable
Department for Business Energy and Industrial Strategy,Intellectual Property Office,15/04/2019,Pay Costs,IT Directorate,Alexander Mann Solutions Limited,2063463,"3,268.70",Not Applicable
Department for Business Energy and Industrial Strategy,Intellectual Property Office,15/04/2019,Pay Costs,Patent Directorate,Alexander Mann Solutions Limited,2063464,590.92,Not Applicable
Department for Business Energy and Industrial Strategy,Intellectual Property Office,18/04/2019,Pay Costs,IT Directorate,Alexander Mann Solutions Limited,2063465,"1,431.94",Not Applicable
Department for Business Energy and Industrial Strategy,Intellectual Property Office,15/04/2019,Pay Costs,IT Directorate,Alexander Mann Solutions Limited,2063466,"3,214.38",Not Applicable
Department for Business Energy and Industrial Strategy,Intellectual Property Office,16/04/2019,Pay Costs,IT Directorate,Alexander Mann Solutions Limited,2063467,"3,317.57",Not Applicable
Department for Business Energy and Industrial Strategy,Intellectual Property Office,15/04/2019,Pay Costs,IT Directorate,Alexander Mann Solutions Limited,2063468,"3,056.08",Not Applicable
Department for Business Energy and Industrial Strategy,Intellectual Property Office,15/04/2019,Pay Costs,IT Directorate,Alexander Mann Solutions Limited,2063469,698.94,Not Applicable
Department for Business Energy and Industrial Strategy,Intellectual Property Office,16/04/2019,Pay Costs,Projects,Alexander Mann Solutions Limited,2063470,"3,109.68",Not Applicable
Department for Business Energy and Industrial Strategy,Intellectual Property Office,16/04/2019,Pay Costs,IT Directorate,Alexander Mann Solutions Limited,2063471,"1,861.96",Not Applicable
Department for Business Energy and Industrial Strategy,Intellectual Property Office,15/04/2019,Pay Costs,IT Directorate,Alexander Mann Solutions Limited,2063472,"2,771.70",Not Applicable
Department for Business Energy and Industrial Strategy,Intellectual Property Office,15/04/2019,Pay Costs,People Places & Serv Directorate,Alexander Mann Solutions Limited,2063476,737.54,Not Applicable
Department for Business Energy and Industrial Strategy,Intellectual Property Office,15/04/2019,Pay Costs,IT Directorate,Alexander Mann Solutions Limited,2063477,"3,803.03",Not Applicable
Department for Business Energy and Industrial Strategy,Intellectual Property Office,15/04/2019,Pay Costs,IT Directorate,Alexander Mann Solutions Limited,2063478,803.87,Not Applicable
Department for Business Energy and Industrial Strategy,Intellectual Property Office,15/04/2019,Pay Costs,Patent Directorate,Alexander Mann Solutions Limited,2063479,522.36,Not Applicable
Department for Business Energy and Industrial Strategy,Intellectual Property Office,16/04/2019,Pay Costs,IT Directorate,Alexander Mann Solutions Limited,2063480,"8,777.09",Not Applicable
Department for Business Energy and Industrial Strategy,Intellectual Property Office,15/04/2019,Pay Costs,Patent Directorate,Alexander Mann Solutions Limited,2063481,644.24,Not Applicable
Department for Business Energy and Industrial Strategy,Intellectual Property Office,24/04/2019,Pay Costs,Patent Directorate,Alexander Mann Solutions Limited,2065089,"1,137.41",Not Applicable
Department for Business Energy and Industrial Strategy,Intellectual Property Office,24/04/2019,Pay Costs,Trade Mark Directorate,Alexander Mann Solutions Limited,2065090,537.60,Not Applicable
Department for Business Energy and Industrial Strategy,Intellectual Property Office,24/04/2019,Pay Costs,Patent Directorate,Alexander Mann Solutions Limited,2065091,662.00,Not Applicable
Department for Business Energy and Industrial Strategy,Intellectual Property Office,24/04/2019,Pay Costs,Patent Directorate,Alexander Mann Solutions Limited,2065092,577.36,Not Applicable
Department for Business Energy and Industrial Strategy,Intellectual Property Office,24/04/2019,Pay Costs,IT Directorate,Alexander Mann Solutions Limited,2065099,"2,930.40",Not Applicable
Department for Business Energy and Industrial Strategy,Intellectual Property Office,24/04/2019,Pay Costs,IT Directorate,Alexander Mann Solutions Limited,2065100,"3,622.86",Not Applicable
Department for Business Energy and Industrial Strategy,Intellectual Property Office,24/04/2019,Pay Costs,Patent Directorate,Alexander Mann Solutions Limited,2065104,524.28,Not Applicable
Department for Business Energy and Industrial Strategy,Intellectual Property Office,24/04/2019,Pay Costs,IT Directorate,Alexander Mann Solutions Limited,2065108,"3,362.40",Not Applicable
Department for Business Energy and Industrial Strategy,Intellectual Property Office,23/04/2019,Pay Costs,IT Directorate,Alexander Mann Solutions Limited,2065109,"3,076.48",Not Applicable
Department for Business Energy and Industrial Strategy,Intellectual Property Office,29/04/2019,Pay Costs,IT Directorate,Alexander Mann Solutions Limited,2065110,"3,448.10",Not Applicable
Department for Business Energy and Industrial Strategy,Intellectual Property Office,23/04/2019,Pay Costs,IT Directorate,Alexander Mann Solutions Limited,2065113,"2,771.70",Not Applicable
Department for Business Energy and Industrial Strategy,Intellectual Property Office,24/04/2019,Pay Costs,Patent Directorate,Alexander Mann Solutions Limited,2065114,569.65,Not Applicable
Department for Business Energy and Industrial Strategy,Intellectual Property Office,24/04/2019,Pay Costs,Patent Directorate,Alexander Mann Solutions Limited,2065115,524.28,Not Applicable
Department for Business Energy and Industrial Strategy,Intellectual Property Office,24/04/2019,Pay Costs,People Places & Serv Directorate,Alexander Mann Solutions Limited,2065116,733.09,Not Applicable
Department for Business Energy and Industrial Strategy,Intellectual Property Office,29/04/2019,Pay Costs,IT Directorate,Alexander Mann Solutions Limited,2065118,"3,651.62",Not Applicable
Department for Business Energy and Industrial Strategy,Intellectual Property Office,24/04/2019,Pay Costs,IT Directorate,Alexander Mann Solutions Limited,2065119,803.87,Not Applicable
Department for Business Energy and Industrial Strategy,Intellectual Property Office,24/04/2019,Pay Costs,Patent Directorate,Alexander Mann Solutions Limited,2065120,652.96,Not Applicable
Department for Business Energy and Industrial Strategy,Intellectual Property Office,24/04/2019,Pay Costs,Patent Directorate,Alexander Mann Solutions Limited,2065121,644.24,Not Applicable
Department for Business Energy and Industrial Strategy,Intellectual Property Office,29/04/2019,Pay Costs,Patent Directorate,Alexander Mann Solutions Limited,2066618,604.25,Not Applicable
Department for Business Energy and Industrial Strategy,Intellectual Property Office,29/04/2019,Pay Costs,Patent Directorate,Alexander Mann Solutions Limited,2066621,542.05,Not Applicable
Department for Business Energy and Industrial Strategy,Intellectual Property Office,29/04/2019,Pay Costs,Patent Directorate,Alexander Mann Solutions Limited,2066622,589.27,Not Applicable
Department for Business Energy and Industrial Strategy,Intellectual Property Office,29/04/2019,Pay Costs,Patent Directorate,Alexander Mann Solutions Limited,2066623,"1,039.24",Not Applicable
Department for Business Energy and Industrial Strategy,Intellectual Property Office,29/04/2019,Pay Costs,Patent Directorate,Alexander Mann Solutions Limited,2066630,568.70,Not Applicable
Department for Business Energy and Industrial Strategy,Intellectual Property Office,29/04/2019,Pay Costs,IT Directorate,Alexander Mann Solutions Limited,2066631,"3,172.36",Not Applicable
Department for Business Energy and Industrial Strategy,Intellectual Property Office,29/04/2019,Pay Costs,IT Directorate,Alexander Mann Solutions Limited,2066632,"2,151.94",Not Applicable
Department for Business Energy and Industrial Strategy,Intellectual Property Office,29/04/2019,Pay Costs,IT Directorate,Alexander Mann Solutions Limited,2066633,"2,795.76",Not Applicable
Department for Business Energy and Industrial Strategy,Intellectual Property Office,29/04/2019,Pay Costs,IT Directorate,Alexander Mann Solutions Limited,2066634,"2,487.74",Not Applicable
Department for Business Energy and Industrial Strategy,Intellectual Property Office,29/04/2019,Pay Costs,IT Directorate,Alexander Mann Solutions Limited,2066635,"2,979.12",Not Applicable
Department for Business Energy and Industrial Strategy,Intellectual Property Office,29/04/2019,Pay Costs,IT Directorate,Alexander Mann Solutions Limited,2066636,"2,217.36",Not Applicable
Department for Business Energy and Industrial Strategy,Intellectual Property Office,29/04/2019,Pay Costs,Patent Directorate,Alexander Mann Solutions Limited,2066638,524.28,Not Applicable
Department for Business Energy and Industrial Strategy,Intellectual Property Office,29/04/2019,Pay Costs,Patent Directorate,Alexander Mann Solutions Limited,2066639,"1,067.72",Not Applicable
Department for Business Energy and Industrial Strategy,Intellectual Property Office,29/04/2019,Pay Costs,People Places & Serv Directorate,Alexander Mann Solutions Limited,2066640,586.48,Not Applicable
Department for Business Energy and Industrial Strategy,Intellectual Property Office,29/04/2019,Pay Costs,Patent Directorate,Alexander Mann Solutions Limited,2066642,522.36,Not Applicable
Department for Business Energy and Industrial Strategy,Intellectual Property Office,29/04/2019,Pay Costs,Patent Directorate,Alexander Mann Solutions Limited,2066644,504.95,Not Applicable
Department for Business Energy and Industrial Strategy,Intellectual Property Office,29/04/2019,Pay Costs,IT Directorate,Alexander Mann Solutions Limited,2066645,"2,719.87",Not Applicable
Department for Business Energy and Industrial Strategy,Intellectual Property Office,24/04/2019,Staff Costs,IT Directorate,Flexera Software Limited,IV-UKLTD-007636,"2,098.80",Not Applicable
Department for Business Energy and Industrial Strategy,Intellectual Property Office,01/04/2019,Information Technology,Finance Directorate,Cyberis Limited,INV01124,"5,250.00",Not Applicable
Department for Business Energy and Industrial Strategy,Intellectual Property Office,01/04/2019,Information Technology,Finance Directorate,Cyberis Limited,INV01145,"7,350.00",Not Applicable
Department for Business Energy and Industrial Strategy,Intellectual Property Office,01/04/2019,Information Technology,Finance Directorate,Cyberis Limited,INV01172,"4,200.00",Not Applicable
Department for Business Energy and Industrial Strategy,Intellectual Property Office,01/04/2019,Information Technology,Finance Directorate,Cyberis Limited,INV01186,"9,450.00",Not Applicable
Department for Business Energy and Industrial Strategy,Intellectual Property Office,15/04/2019,Marketing & Publicity,Innovation Directorate,NS Events Group Ltd,NBE20104,"4,536.00",Not Applicable
Department for Business Energy and Industrial Strategy,Intellectual Property Office,09/04/2019,Staff Costs,People Places & Serv Directorate,Eliesha Training Ltd,20520,"3,471.00",Not Applicable
Department for Business Energy and Industrial Strategy,Intellectual Property Office,09/04/2019,Staff Costs,People Places & Serv Directorate,Eliesha Training Ltd,20522,714.00,Not Applicable
Department for Business Energy and Industrial Strategy,Intellectual Property Office,09/04/2019,Supporting UK Business,Innovation Directorate,Kilburn & Strode LLP,KS726831,"2,499.40",Not Applicable
Department for Business Energy and Industrial Strategy,Intellectual Property Office,30/04/2019,Supporting UK Business,Innovation Directorate,Kilburn & Strode LLP,KS726933,"2,500.00",Not Applicable
Department for Business Energy and Industrial Strategy,Intellectual Property Office,02/04/2019,Information Technology,Projects,Cotswold Connections Ltd,329,"29,040.00",Not Applicable
Department for Business Energy and Industrial Strategy,Intellectual Property Office,29/04/2019,Information Technology,Projects,DYNATRACE LIMITED,GBR-2003331,"3,000.00",Not Applicable
Department for Business Energy and Industrial Strategy,Intellectual Property Office,30/04/2019,Miscellaneous Expenses General,Projects,Belike Software,2019-050,"7,167.06",Not Applicable
Department for Business Energy and Industrial Strategy,Intellectual Property Office,30/04/2019,Miscellaneous Expenses General,Projects,Belike Software,2019-074,"14,550.96",Not Applicable
Department for Business Energy and Industrial Strategy,Intellectual Property Office,30/04/2019,Accommodation,People Places & Serv Directorate,Government Property Agency,00000001/578,"201,856.75",Not Applicable
Department for Business Energy and Industrial Strategy,Intellectual Property Office,03/04/2019,Miscellaneous Expenses General,Copyright and Enforcement Directorate,Conference Aston,100060717,538.00,Not Applicable
Department for Business Energy and Industrial Strategy,Intellectual Property Office,24/04/2019,Staff Costs,IT Directorate,Experimentus Ltd,7456,840.00,Not Applicable
Department for Business Energy and Industrial Strategy,Intellectual Property Office,11/04/2019,Staff Costs,Patent Directorate,Civil Service College Limited,2452,714.00,Not Applicable
Department for Business Energy and Industrial Strategy,Intellectual Property Office,02/04/2019,Pay Costs,IT Directorate,Qualserv Consulting Ltd,C-23112,"3,120.12",Not Applicable
Department for Business Energy and Industrial Strategy,Intellectual Property Office,09/04/2019,Pay Costs,IT Directorate,Qualserv Consulting Ltd,C-23130,"3,120.12",Not Applicable
Department for Business Energy and Industrial Strategy,Intellectual Property Office,29/04/2019,Pay Costs,IT Directorate,Qualserv Consulting Ltd,C-23144,936.04,Not Applicable
Department for Business Energy and Industrial Strategy,Intellectual Property Office,18/04/2019,Pay Costs,IT Directorate,Qualserv Consulting Ltd,C/23138,"3,120.12",Not Applicable
Department for Business Energy and Industrial Strategy,Intellectual Property Office,02/04/2019,Miscellaneous Expenses General,Innovation Directorate,AudienceNet,INV-1025,"23,580.00",Not Applicable
Department for Business Energy and Industrial Strategy,Intellectual Property Office,03/04/2019,Marketing & Publicity,Innovation Directorate,Hub Exhibitions Limited,INV-0065,"2,948.40",Not Applicable
Department for Business Energy and Industrial Strategy,Intellectual Property Office,29/04/2019,Information Technology,IT Directorate,Broadberry Data Systems Ltd,76927,"61,248.62",Not Applicable
Department for Business Energy and Industrial Strategy,Intellectual Property Office,29/04/2019,Information Technology,Projects,Personal expenses,UK4874,572.28,Not Applicable
Department for Business Energy and Industrial Strategy,Intellectual Property Office,02/04/2019,Information Technology,Copyright and Enforcement Directorate,ALF Insight Limited,ALF000240,"3,480.00",Not Applicable
Department for Business Energy and Industrial Strategy,Intellectual Property Office,05/04/2019,Marketing & Publicity,Innovation Directorate,stop. coffee ltd,1294,813.00,Not Applicable
Department for Business Energy and Industrial Strategy,Intellectual Property Office,09/04/2019,Supporting UK Business,Innovation Directorate,Foot Anstey LLP,11215510,"3,000.00",Not Applicable
Department for Business Energy and Industrial Strategy,Intellectual Property Office,09/04/2019,Supporting UK Business,Innovation Directorate,Foot Anstey LLP,11217091,"2,500.01",Not Applicable
Department for Business Energy and Industrial Strategy,Intellectual Property Office,09/04/2019,Supporting UK Business,Innovation Directorate,Foot Anstey LLP,21642766,"-3,000.00",Not Applicable
Department for Business Energy and Industrial Strategy,Intellectual Property Office,02/04/2019,Miscellaneous Expenses General,Innovation Directorate,Helienne Lindvall,35,"2,000.00",Not Applicable
Department for Business Energy and Industrial Strategy,Intellectual Property Office,05/04/2019,Staff Costs,Finance Directorate,Kaplan Financial,SCRN19-004346,-749.00,Not Applicable
Department for Business Energy and Industrial Strategy,Intellectual Property Office,05/04/2019,Staff Costs,Finance Directorate,Kaplan Financial,SINV19-031776,755.00,Not Applicable
Department for Business Energy and Industrial Strategy,Intellectual Property Office,02/04/2019,Staff Costs,Finance Directorate,Kaplan Financial,SINV19-032108,749.00,Not Applicable
Department for Business Energy and Industrial Strategy,Intellectual Property Office,03/04/2019,Supporting UK Business,Innovation Directorate,Adamson Jones IP Limited,17302,"2,500.00",Not Applicable
Department for Business Energy and Industrial Strategy,Intellectual Property Office,09/04/2019,Miscellaneous Expenses General,Copyright and Enforcement Directorate,ApiraSol GmbH,2019-07,"8,757.33",Not Applicable
Department for Business Energy and Industrial Strategy,Intellectual Property Office,04/04/2019,Miscellaneous Expenses General,Innovation Directorate,Richard Osborne,IPO-M2025,"1,000.00",Not Applicable
Department for Business Energy and Industrial Strategy,Intellectual Property Office,09/04/2019,Supporting UK Business,Innovation Directorate,Brandsmiths S L Limited,BRA02405,"2,500.00",Not Applicable
Department for Business Energy and Industrial Strategy,Intellectual Property Office,09/04/2019,Supporting UK Business,Innovation Directorate,McDaniel & Co,18256-BIG003-005,"2,500.00",Not Applicable
Department for Business Energy and Industrial Strategy,Intellectual Property Office,25/04/2019,Staff Costs,Patent Directorate,Cambridge Market Intelligence Ltd t/a IP,14422,"1,140.00",Not Applicable
Department for Business Energy and Industrial Strategy,Intellectual Property Office,16/04/2019,Miscellaneous Expenses General,Finance Directorate,Llechi Cwm Gwendraeth,2189,570.00,Not Applicable
Department for Business Energy and Industrial Strategy,Intellectual Property Office,29/04/2019,Staff Costs,People Places & Serv Directorate,ICS Learn,102470,"5,610.00",Not Applicable
Department for Business Energy and Industrial Strategy,Intellectual Property Office,29/04/2019,Staff Costs,People Places & Serv Directorate,ICS Learn,102482,"2,805.00",Not Applicable
Department for Business Energy and Industrial Strategy,Intellectual Property Office,01/04/2019,Career Development Services,IT Directorate,Amzn Mktp Uk,H57720190403odehcugej,2.61,Not Applicable
Department for Business Energy and Industrial Strategy,Intellectual Property Office,01/04/2019,Entertainment,Patent Directorate,Tesco-Stores 6225,H57720190403bzzlktbns,68.05,Not Applicable
Department for Business Energy and Industrial Strategy,Intellectual Property Office,01/04/2019,Placement Fees,Patent Directorate,Afbe-Uk,H57720190403rjwjxpxea,300.00,Not Applicable
Department for Business Energy and Industrial Strategy,Intellectual Property Office,01/04/2019,Office Stationery,People Places & Serv Directorate,Sjasuplies,H57720190403ttpmbdpoj,127.60,Not Applicable
Department for Business Energy and Industrial Strategy,Intellectual Property Office,02/04/2019,Steering Board,People Places & Serv Directorate,Marks&spencer Plc Sf,H57720190404ggahnmtxc,91.94,Not Applicable
Department for Business Energy and Industrial Strategy,Intellectual Property Office,02/04/2019,Office Furniture,People Places & Serv Directorate,Amazon.Co.Uk,H57720190404iutkirnhl,"1,260.98",Not Applicable
Department for Business Energy and Industrial Strategy,Intellectual Property Office,02/04/2019,Office Stationery,People Places & Serv Directorate,Paypal,H57720190405mmveqtchc,3.99,Not Applicable
Department for Business Energy and Industrial Strategy,Intellectual Property Office,02/04/2019,Office Stationery,People Places & Serv Directorate,Www.Uk.Rs-Online.C,H57720190405smcyisdek,55.06,Not Applicable
Department for Business Energy and Industrial Strategy,Intellectual Property Office,02/04/2019,Office Stationery,People Places & Serv Directorate,Amznmktplace Amazon.Co.Uk,H57720190404dlbtfuisi,64.79,Not Applicable
Department for Business Energy and Industrial Strategy,Intellectual Property Office,02/04/2019,Placement Fees,Patent Directorate,Monster Worldwide Limi,H57720190404qwqzvldgf,156.00,Not Applicable
Department for Business Energy and Industrial Strategy,Intellectual Property Office,02/04/2019,Office Stationery,People Places & Serv Directorate,Amzn Mktp Uk,H57720190404kssydnoop,19.50,Not Applicable
Department for Business Energy and Industrial Strategy,Intellectual Property Office,02/04/2019,Office Stationery,People Places & Serv Directorate,Amznmktplace,H57720190404lwtwobnpq,39.29,Not Applicable
Department for Business Energy and Industrial Strategy,Intellectual Property Office,02/04/2019,Office Stationery,People Places & Serv Directorate,Paperstone Limited,H57720190404okmxfmqwu,35.82,Not Applicable
Department for Business Energy and Industrial Strategy,Intellectual Property Office,02/04/2019,Office Stationery,People Places & Serv Directorate,Amznmktplace,H57720190404wlbkzimxo,12.00,Not Applicable
Department for Business Energy and Industrial Strategy,Intellectual Property Office,02/04/2019,Career Development Services,People Places & Serv Directorate,Asda Superstore 4928,H57720190404ijougfmdr,47.60,Not Applicable
Department for Business Energy and Industrial Strategy,Intellectual Property Office,03/04/2019,Advertising Distribution,Innovation Directorate,Www.Pret.Com,H57720190405ahkpyumvl,79.28,Not Applicable
Department for Business Energy and Industrial Strategy,Intellectual Property Office,03/04/2019,Advertising Distribution,Innovation Directorate,Www.Pret.Com,H57720190405rfdvwbgwq,79.28,Not Applicable
Department for Business Energy and Industrial Strategy,Intellectual Property Office,03/04/2019,Advertising Distribution,Innovation Directorate,Www.Pret.Com,H57720190405ruvtyybwr,79.28,Not Applicable
Department for Business Energy and Industrial Strategy,Intellectual Property Office,03/04/2019,Steering Board,People Places & Serv Directorate,Marks&spencer Plc,H57720190405fhsljtacc,85.94,Not Applicable
Department for Business Energy and Industrial Strategy,Intellectual Property Office,03/04/2019,Advertising Distribution,Innovation Directorate,Amznmktplace,H57720190405piebyrkxc,41.00,Not Applicable
Department for Business Energy and Industrial Strategy,Intellectual Property Office,03/04/2019,Office Stationery,People Places & Serv Directorate,Newey & Eyre,H57720190406hotkrfmbh,964.80,Not Applicable
Department for Business Energy and Industrial Strategy,Intellectual Property Office,03/04/2019,Office Stationery,People Places & Serv Directorate,Amznmktplace Amazon.Co.Uk,H57720190405agqydefvi,151.19,Not Applicable
Department for Business Energy and Industrial Strategy,Intellectual Property Office,03/04/2019,Office Stationery,People Places & Serv Directorate,Amznmktplace Amazon.Co.Uk,H57720190405lwslfeftu,16.80,Not Applicable
Department for Business Energy and Industrial Strategy,Intellectual Property Office,03/04/2019,Office Stationery,People Places & Serv Directorate,Www.Mtfenterprises.Co.,H57720190405xjniwymop,699.98,Not Applicable
Department for Business Energy and Industrial Strategy,Intellectual Property Office,03/04/2019,Office Stationery,People Places & Serv Directorate,Amznmktplace,H57720190405szozisqlc,8.70,Not Applicable
Department for Business Energy and Industrial Strategy,Intellectual Property Office,03/04/2019,Network and infrastructure H/W,People Places & Serv Directorate,Tesco-Stores 6459,H57720190405vkxasfqye,23.01,Not Applicable
Department for Business Energy and Industrial Strategy,Intellectual Property Office,04/04/2019,Other,People Places & Serv Directorate,Paypal,H57720190406pgydzrgue,-3.33,Not Applicable
Department for Business Energy and Industrial Strategy,Intellectual Property Office,04/04/2019,Steering Board,People Places & Serv Directorate,Hie Newport,H57720190406isydlvgyy,70.50,Not Applicable
Department for Business Energy and Industrial Strategy,Intellectual Property Office,04/04/2019,Office Stationery,People Places & Serv Directorate,The Colour Centre,H57720190406jmihaxvvk,449.28,Not Applicable
Department for Business Energy and Industrial Strategy,Intellectual Property Office,04/04/2019,Seminars and Confereces,Innovation Directorate,Sainsburys S/mkts,H57720190406flhiavuhz,23.40,Not Applicable
Department for Business Energy and Industrial Strategy,Intellectual Property Office,04/04/2019,Placement Fees,Patent Directorate,Jobtargetuk,H57720190406dvswvjpgo,360.00,Not Applicable
Department for Business Energy and Industrial Strategy,Intellectual Property Office,04/04/2019,Office Stationery,People Places & Serv Directorate,Officemachines.Net,H57720190406knvgjrykr,59.82,Not Applicable
Department for Business Energy and Industrial Strategy,Intellectual Property Office,04/04/2019,Other,People Places & Serv Directorate,Amzn Mktp Uk,H57720190406jfesadeop,2.57,Not Applicable
Department for Business Energy and Industrial Strategy,Intellectual Property Office,05/04/2019,Books,People Places & Serv Directorate,Turpin44(0)01767604800,H57720190409fogyginch,52.92,Not Applicable
Department for Business Energy and Industrial Strategy,Intellectual Property Office,05/04/2019,Placement Fees,Patent Directorate,Paypal,H57720190409anxlxrjkq,534.00,Not Applicable
Department for Business Energy and Industrial Strategy,Intellectual Property Office,05/04/2019,Office Stationery,People Places & Serv Directorate,Amznmktplace Amazon.Co.Uk,H57720190409vctgwiobr,70.35,Not Applicable
Department for Business Energy and Industrial Strategy,Intellectual Property Office,05/04/2019,Seminars and Confereces,People Places & Serv Directorate,Uktranscription.Com,H57720190409tkvifslbp,14.04,Not Applicable
Department for Business Energy and Industrial Strategy,Intellectual Property Office,06/04/2019,Books,Trade Mark Directorate,The Intellectual Property,H57720190409jxhygbfmm,50.00,Not Applicable
Department for Business Energy and Industrial Strategy,Intellectual Property Office,06/04/2019,Books,Trade Mark Directorate,The Intellectual Property,H57720190409rqhdjygdm,170.00,Not Applicable
Department for Business Energy and Industrial Strategy,Intellectual Property Office,07/04/2019,Office Stationery,People Places & Serv Directorate,Amazon.Co.Uk,H57720190409irbitvtdl,36.49,Not Applicable
Department for Business Energy and Industrial Strategy,Intellectual Property Office,07/04/2019,Entertainment,Patent Directorate,Tesco Store 3063,H57720190409kodrukxsf,80.80,Not Applicable
Department for Business Energy and Industrial Strategy,Intellectual Property Office,07/04/2019,Books,Trade Mark Directorate,The Intellectual Property,H57720190409exwawtgwz,100.00,Not Applicable
Department for Business Energy and Industrial Strategy,Intellectual Property Office,07/04/2019,Books,Trade Mark Directorate,The Intellectual Property,H57720190409lgerjmbad,50.00,Not Applicable
Department for Business Energy and Industrial Strategy,Intellectual Property Office,07/04/2019,Other,People Places & Serv Directorate,Amznmktplace Amazon.Co.Uk,H57720190409dwykvytxg,35.80,Not Applicable
Department for Business Energy and Industrial Strategy,Intellectual Property Office,07/04/2019,Other,People Places & Serv Directorate,Amzn Mktp Uk,H57720190409rvxqxcakb,10.41,Not Applicable
Department for Business Energy and Industrial Strategy,Intellectual Property Office,08/04/2019,Other,People Places & Serv Directorate,The Lord Mayors Appeal,H57720190410dyongypsg,132.50,Not Applicable
Department for Business Energy and Industrial Strategy,Intellectual Property Office,08/04/2019,Office Stationery,People Places & Serv Directorate,Home Bargains,H57720190410ibtbxybwi,4.99,Not Applicable
Department for Business Energy and Industrial Strategy,Intellectual Property Office,08/04/2019,Office Stationery,People Places & Serv Directorate,Poundland Ltd 1387,H57720190410lhcvwnijs,2.10,Not Applicable
Department for Business Energy and Industrial Strategy,Intellectual Property Office,08/04/2019,Entertainment,People Places & Serv Directorate,Www.Uk.Edensprings.Com,H57720190410wmtkberbp,20.49,Not Applicable
Department for Business Energy and Industrial Strategy,Intellectual Property Office,09/04/2019,Network and infrastructure H/W,IT Directorate,Wwwcabling4lesscouk,H57720190411ejwbtxkph,66.00,Not Applicable
Department for Business Energy and Industrial Strategy,Intellectual Property Office,09/04/2019,Career Development Services,People Places & Serv Directorate,Paypal,H57720190411xwzfowadr,235.00,Not Applicable
Department for Business Energy and Industrial Strategy,Intellectual Property Office,10/04/2019,Office Stationery,People Places & Serv Directorate,Amznmktplace,H57720190412dzotycmoo,21.48,Not Applicable
Department for Business Energy and Industrial Strategy,Intellectual Property Office,10/04/2019,Entertainment,International Policy Directorate,British Museum,H57720190412nculyobwz,100.00,Not Applicable
Department for Business Energy and Industrial Strategy,Intellectual Property Office,10/04/2019,Overseas Patent Specifications,Patent Directorate,Faseb Journal Pay Per Vw,H57720190412ocgiuphho,27.68,Not Applicable
Department for Business Energy and Industrial Strategy,Intellectual Property Office,10/04/2019,Overseas Patent Specifications,Patent Directorate,Elsevier,H57720190412yfbmsmfrn,34.11,Not Applicable
Department for Business Energy and Industrial Strategy,Intellectual Property Office,10/04/2019,Books,Trade Mark Directorate,The Intellectual Property,H57720190412vjvbtdgxg,-100.00,Not Applicable
Department for Business Energy and Industrial Strategy,Intellectual Property Office,10/04/2019,Books,Trade Mark Directorate,The Intellectual Property,H57720190412gbnqhhshn,-170.00,Not Applicable
Department for Business Energy and Industrial Strategy,Intellectual Property Office,10/04/2019,Office Stationery,People Places & Serv Directorate,Screwfix Direct,H57720190412ouuxfucck,199.80,Not Applicable
Department for Business Energy and Industrial Strategy,Intellectual Property Office,10/04/2019,Office Stationery,People Places & Serv Directorate,Amazon.Co.Uk,H57720190412rkhsdavfy,17.63,Not Applicable
Department for Business Energy and Industrial Strategy,Intellectual Property Office,10/04/2019,Career Development Services,People Places & Serv Directorate,Asda Superstore 4928,H57720190412tbyqlzsxj,36.35,Not Applicable
Department for Business Energy and Industrial Strategy,Intellectual Property Office,11/04/2019,Career Development Services,Finance Directorate,Acca Events,H57720190413gbtooyjva,125.00,Not Applicable
Department for Business Energy and Industrial Strategy,Intellectual Property Office,11/04/2019,Books,IT Directorate,Amazon.Co.Uk,H57720190413axvqfyspg,15.47,Not Applicable
Department for Business Energy and Industrial Strategy,Intellectual Property Office,11/04/2019,Books,IT Directorate,Amazon.Co.Uk,H57720190413jfyircaxc,21.35,Not Applicable
Department for Business Energy and Industrial Strategy,Intellectual Property Office,11/04/2019,Career Development Services,IT Directorate,Haymarket Media Group,H57720190413kderifwqt,582.00,Not Applicable
Department for Business Energy and Industrial Strategy,Intellectual Property Office,11/04/2019,Career Development Services,Innovation Directorate,Cim,H57720190413kxooefrwx,110.00,Not Applicable
Department for Business Energy and Industrial Strategy,Intellectual Property Office,11/04/2019,Office Stationery,People Places & Serv Directorate,Www.Mtfenterprises.Co.,H57720190413xiptfrodo,149.98,Not Applicable
Department for Business Energy and Industrial Strategy,Intellectual Property Office,11/04/2019,Network and infrastructure H/W,IT Directorate,Amznmktplace,H57720190413hirnxqtqw,77.89,Not Applicable
Department for Business Energy and Industrial Strategy,Intellectual Property Office,11/04/2019,Career Development Services,Patent Directorate,Eb *semiconductor Amp,H57720190413qygmxsyzd,920.82,Not Applicable
Department for Business Energy and Industrial Strategy,Intellectual Property Office,11/04/2019,Books,Trade Mark Directorate,The Intellectual Property,H57720190413wzvfiakyw,-50.00,Not Applicable
Department for Business Energy and Industrial Strategy,Intellectual Property Office,11/04/2019,Books,Trade Mark Directorate,The Intellectual Property,H57720190413ixiwizuvp,-50.00,Not Applicable
Department for Business Energy and Industrial Strategy,Intellectual Property Office,11/04/2019,Office Stationery,People Places & Serv Directorate,Healthy Workstations Ltd,H57720190413nincnqbhj,798.24,Not Applicable
Department for Business Energy and Industrial Strategy,Intellectual Property Office,12/04/2019,Network and infrastructure H/W,IT Directorate,Amznmktplace,H57720190416vyggdumis,20.59,Not Applicable
Department for Business Energy and Industrial Strategy,Intellectual Property Office,12/04/2019,Office Stationery,People Places & Serv Directorate,Healthy Workstations Ltd,H57720190416odpyvgtkd,106.80,Not Applicable
Department for Business Energy and Industrial Strategy,Intellectual Property Office,13/04/2019,Network and infrastructure H/W,IT Directorate,Amznmktplace Amazon.Co.Uk,H57720190416nqienmuzz,193.77,Not Applicable
Department for Business Energy and Industrial Strategy,Intellectual Property Office,14/04/2019,Office Stationery,People Places & Serv Directorate,Amznmktplace,H57720190416vggetotpe,53.99,Not Applicable
Department for Business Energy and Industrial Strategy,Intellectual Property Office,15/04/2019,Network and infrastructure H/W,IT Directorate,Amazon.Co.Uk,H57720190417xmumdonhp,149.00,Not Applicable
Department for Business Energy and Industrial Strategy,Intellectual Property Office,15/04/2019,Office Stationery,People Places & Serv Directorate,Evac & Chair Internati,H57720190417pqydctmbu,174.00,Not Applicable
Department for Business Energy and Industrial Strategy,Intellectual Property Office,15/04/2019,Office Stationery,People Places & Serv Directorate,Amznmktplace,H57720190417fishdgfvq,8.80,Not Applicable
Department for Business Energy and Industrial Strategy,Intellectual Property Office,15/04/2019,Office Stationery,People Places & Serv Directorate,Fireprotect,H57720190417qbmcexcsx,59.08,Not Applicable
Department for Business Energy and Industrial Strategy,Intellectual Property Office,15/04/2019,Career Development Services,People Places & Serv Directorate,It Will Glow,H57720190417mtgvnhxen,23.50,Not Applicable
Department for Business Energy and Industrial Strategy,Intellectual Property Office,16/04/2019,Books,People Places & Serv Directorate,Amazon.Co.Uk,H57720190418naietyews,47.99,Not Applicable
Department for Business Energy and Industrial Strategy,Intellectual Property Office,16/04/2019,Fixed Telecoms Equipment,IT Directorate,Www.Meetingzone.Com,H57720190418thpuegzox,272.95,Not Applicable
Department for Business Energy and Industrial Strategy,Intellectual Property Office,17/04/2019,Career Development Services,People Places & Serv Directorate,Campaign For Learning,H57720190419ldsyrstjz,128.94,Not Applicable
Department for Business Energy and Industrial Strategy,Intellectual Property Office,17/04/2019,Office Stationery,People Places & Serv Directorate,Amznmktplace Amazon.Co.Uk,H57720190419foinzndsi,25.87,Not Applicable
Department for Business Energy and Industrial Strategy,Intellectual Property Office,18/04/2019,Office Stationery,People Places & Serv Directorate,Www.Barriersdirect.Co.,H57720190420kjczyhanx,334.79,Not Applicable
Department for Business Energy and Industrial Strategy,Intellectual Property Office,18/04/2019,Office Stationery,People Places & Serv Directorate,Abundance Of Petals,H57720190420ltmhoothp,160.00,Not Applicable
Department for Business Energy and Industrial Strategy,Intellectual Property Office,18/04/2019,Office Stationery,People Places & Serv Directorate,Screwfix Direct,H57720190420ytnbxhdhl,114.66,Not Applicable
Department for Business Energy and Industrial Strategy,Intellectual Property Office,23/04/2019,Career Development Services,IT Directorate,The Angel Hotel,H57720190425oivcptcnp,240.00,Not Applicable
Department for Business Energy and Industrial Strategy,Intellectual Property Office,23/04/2019,Office Stationery,People Places & Serv Directorate,Paypal,H57720190426uvryovopb,-3.99,Not Applicable
Department for Business Energy and Industrial Strategy,Intellectual Property Office,23/04/2019,Office Stationery,People Places & Serv Directorate,Www.Barriersdirect.Co.,H57720190425qnamvlgqq,334.79,Not Applicable
Department for Business Energy and Industrial Strategy,Intellectual Property Office,23/04/2019,Career Development Services,People Places & Serv Directorate,Paypal,H57720190426mhyjrlikw,-299.00,Not Applicable
Department for Business Energy and Industrial Strategy,Intellectual Property Office,24/04/2019,Office Stationery,People Places & Serv Directorate,Screwfix Direct,H57720190426ttghjouxt,29.99,Not Applicable
Department for Business Energy and Industrial Strategy,Intellectual Property Office,25/04/2019,Steering Board,People Places & Serv Directorate,Office For National St,H57720190427rtgcgtefy,1.05,Not Applicable
Department for Business Energy and Industrial Strategy,Intellectual Property Office,25/04/2019,Office Stationery,Finance Directorate,Amznmktplace Amazon.Co.Uk,H57720190427pxufdkyfw,8.84,Not Applicable
Department for Business Energy and Industrial Strategy,Intellectual Property Office,25/04/2019,Career Development Services,People Places & Serv Directorate,Poundland Ltd,H57720190427hzuxihjfe,15.05,Not Applicable
Department for Business Energy and Industrial Strategy,Intellectual Property Office,25/04/2019,Career Development Services,People Places & Serv Directorate,Yes Im A Designer Limi,H57720190427bbuovmxdn,15.21,Not Applicable
Department for Business Energy and Industrial Strategy,Intellectual Property Office,26/04/2019,Steering Board,People Places & Serv Directorate,Tesco Store 2931,H57720190430ttpsjycwg,7.20,Not Applicable
Department for Business Energy and Industrial Strategy,Intellectual Property Office,26/04/2019,Career Development Services,IT Directorate,Eb *leadership Mastery,H57720190430jqfyuthxy,95.54,Not Applicable
Department for Business Energy and Industrial Strategy,Intellectual Property Office,26/04/2019,Career Development Services,IT Directorate,Bristol Airport Limite,H57720190430qenmetduy,100.99,Not Applicable
Department for Business Energy and Industrial Strategy,Intellectual Property Office,27/04/2019,Books,Trade Mark Directorate,The Intellectual Property,H57720190430aytlaetau,50.00,Not Applicable
Department for Business Energy and Industrial Strategy,Intellectual Property Office,27/04/2019,Books,Trade Mark Directorate,The Intellectual Property,H57720190430dlryrnnhl,100.00,Not Applicable
Department for Business Energy and Industrial Strategy,Intellectual Property Office,27/04/2019,Books,Trade Mark Directorate,The Intellectual Property,H57720190430poeyrmthw,100.00,Not Applicable
Department for Business Energy and Industrial Strategy,Intellectual Property Office,27/04/2019,Books,Trade Mark Directorate,The Intellectual Property,H57720190430yfnkyalox,50.00,Not Applicable
Department for Business Energy and Industrial Strategy,Intellectual Property Office,27/04/2019,Career Development Services,People Places & Serv Directorate,Schoolism.Com,H57720190430aokptqbvw,23.95,Not Applicable
Department for Business Energy and Industrial Strategy,Intellectual Property Office,27/04/2019,Career Development Services,People Places & Serv Directorate,Schoolism.Com,H57720190430nriqdvhht,23.95,Not Applicable
Department for Business Energy and Industrial Strategy,Intellectual Property Office,27/04/2019,Career Development Services,People Places & Serv Directorate,Schoolism.Com,H57720190430rqxjvjzic,23.95,Not Applicable
Department for Business Energy and Industrial Strategy,Intellectual Property Office,28/04/2019,Career Development Services,People Places & Serv Directorate,Tesco-Stores 6225,H57720190430ixxkprtgg,21.45,Not Applicable
Department for Business Energy and Industrial Strategy,Intellectual Property Office,29/04/2019,Career Development Services,IT Directorate,Bristol Airport Limite,H57720190501feyunordl,52.99,Not Applicable
Department for Business Energy and Industrial Strategy,Intellectual Property Office,29/04/2019,Books,Trade Mark Directorate,The Intellectual Property,H57720190501lrlotsfzd,-100.00,Not Applicable
Department for Business Energy and Industrial Strategy,Intellectual Property Office,29/04/2019,Books,Trade Mark Directorate,The Intellectual Property,H57720190501ubqqiwfbb,-50.00,Not Applicable
Department for Business Energy and Industrial Strategy,Intellectual Property Office,29/04/2019,Books,Trade Mark Directorate,The Intellectual Property,H57720190501vmzkebiqp,-50.00,Not Applicable
Department for Business Energy and Industrial Strategy,Intellectual Property Office,29/04/2019,Books,Trade Mark Directorate,The Intellectual Property,H57720190501vnxpwrdjg,-100.00,Not Applicable
Department for Business Energy and Industrial Strategy,Intellectual Property Office,29/04/2019,Office Stationery,People Places & Serv Directorate,Officemachines.Net,H57720190501hiwfsrnje,112.50,Not Applicable
Department for Business Energy and Industrial Strategy,Intellectual Property Office,30/04/2019,Office Stationery,People Places & Serv Directorate,Amznmktplace,H57720190502qirpevcbv,24.48,Not Applicable
Department for Business Energy and Industrial Strategy,Intellectual Property Office,30/04/2019,Office Stationery,People Places & Serv Directorate,Amznmktplace,H57720190502qcgcpyvls,32.95,Not Applicable
Department for Business Energy and Industrial Strategy,Intellectual Property Office,30/04/2019,Career Development Services,People Places & Serv Directorate,Myguides Ltd,H57720190502hjuliiqsb,"1,914.00",Not Applicable
Department for Business Energy and Industrial Strategy,Intellectual Property Office,30/04/2019,Seminars and Confereces,Finance Directorate,Tredgar House,H57720190502jmffryjpg,168.00,Not Applicable
Department for Business Energy and Industrial Strategy,Intellectual Property Office,30/04/2019,Seminars and Confereces,Finance Directorate,Dmn/Hungdrawnquartered,H57720190502kmzajvpvo,523.12,Not Applicable
Department for Business Energy and Industrial Strategy,Intellectual Property Office,30/04/2019,Seminars and Confereces,Finance Directorate,South Wales Suppliers,H57720190502kzvrhfrid,162.00,Not Applicable
Department for Business Energy and Industrial Strategy,Intellectual Property Office,30/04/2019,Seminars and Confereces,Finance Directorate,Tiny Rebel Brewery Bar,H57720190502tjrnsqyuf,657.00,Not Applicable
Department for Business Energy and Industrial Strategy,Intellectual Property Office,30/04/2019,Entertainment,People Places & Serv Directorate,Www.Uk.Edensprings.Com,H57720190502lwtdltjai,42.95,Not Applicable
